bitfinex/quotes_ETHUSD_20260129
["timestamp","ask_amount","ask_price","bid_price","bid_amount"]
[1769654999114,3.39140463,2948.7,2945.8,9.77051201]
[1769654999532,3.39140463,2948.7,2945.9,9.77051201]
[1769655000051,9.98688626,2948.6,2945.9,9.77051201]
[1769655000218,1.33782909,2948.5,2946.1,9.77051201]
[1769655000413,11.32471535,2948.5,2946.1,9.77051201]
[1769655000928,11.32571535,2948.5,2946.1,9.77051201]
[1769655001134,10.22045656,2948.3,2946.2,0.84855067]
[1769655001313,9.98688626,2948.3,2946.2,0.84855067]
[1769655001510,0.2335703,2947.9,2946.3,0.42427534]
[1769655001715,0.2335703,2947.9,2946.2,0.84855067]
[1769655001716,10.22045656,2947.9,2946.2,0.84855067]
[1769655001934,10.22045656,2947.9,2945.9,3.39445441]
[1769655001935,9.98688626,2947.7,2945.9,3.39445441]
[1769655002145,9.98688626,2947.7,2946.0,3.39441114]
[1769655002346,9.98688626,2947.4,2945.2,3.39526837]
[1769655002567,0.2335703,2947.5,2945.6,3.39480912]
[1769655002568,10.22045656,2947.1,2945.6,3.39480912]
[1769655002849,9.98688626,2947.1,2945.0,3.39752877]
[1769655003034,0.84834911,2946.9,2945.2,10.61935079]
[1769655003238,0.84834911,2946.9,2945.3,3.39518337]
[1769655003635,10.83523537,2946.9,2945.2,0.84883878]
[1769655003848,3.39339645,2947.0,2945.2,0.84883878]
[1769655003849,1.34500044,2946.8,2945.2,1.71797644]
[1769655004153,0.84833936,2947.0,2945.2,1.71797644]
[1769655004318,0.84833936,2947.0,2945.0,0.002]
[1769655004319,9.98688626,2946.8,2945.0,0.002]
[1769655004519,0.84833936,2947.0,2945.1,10.61937669]
[1769655004734,0.84833936,2947.0,2945.3,9.77051201]
[1769655005047,0.99868863,2947.6,2945.5,9.77051201]
[1769655005248,2.64147199,2948.2,2945.6,9.77051201]
[1769655005436,1.55799161,2948.2,2945.8,9.77051201]
[1769655005636,1.55799161,2948.2,2945.9,9.77051201]
[1769655006251,0.06055509,2948.1,2945.9,9.77051201]
[1769655006417,19.63750252,2948.2,2946.1,9.77051201]
[1769655006418,1.96980576,2948.0,2946.1,9.77051201]
[1769655006620,1.55799161,2948.2,2946.1,9.77051201]
[1769655006821,1.55799161,2948.2,2946.2,0.71]
[1769655007052,1.55799161,2948.2,2946.3,0.71]
[1769655007053,0.84799161,2948.2,2946.3,0.71]
[1769655007355,0.84799161,2948.2,2946.1,0.84857453]
[1769655007356,0.2335703,2947.7,2946.1,0.84857453]
[1769655007518,0.29412539,2947.7,2946.0,0.84859054]
[1769655007724,0.2335703,2947.7,2946.1,0.84857918]
[1769655007919,0.838675,2947.6,2946.1,0.84857918]
[1769655008258,10.41693094,2948.1,2946.1,0.84857918]
[1769655008558,0.43004468,2948.1,2946.1,10.61909119]
[1769655008851,0.43004468,2948.1,2946.2,0.71]
[1769655009054,0.84803256,2948.0,2946.1,0.84857918]
[1769655009257,10.89547391,2948.0,2946.1,0.84857918]
[1769655009559,1.47176488,2947.9,2946.2,0.4952998]
[1769655010259,0.84803256,2948.0,2946.3,0.71]
[1769655010422,0.84803256,2948.0,2946.2,0.4952998]
[1769655011248,0.84803256,2948.0,2946.3,0.84852187]
[1769655011455,0.84803256,2948.0,2946.3,1.55852187]
[1769655011760,0.8479345,2948.4,2946.3,11.32903388]
[1769655011949,0.84890615,2948.5,2946.4,11.29235413]
[1769655012424,10.8963475,2948.5,2946.4,1.52184212]
[1769655012627,10.83579241,2948.5,2946.4,0.002]
[1769655012850,0.001,2948.0,2946.4,0.002]
[1769655013049,0.001,2948.0,2946.5,0.71]
[1769655013242,0.001,2948.0,2946.4,0.002]
[1769655013552,0.001,2948.0,2946.6,0.84843548]
[1769655013757,0.001,2948.0,2946.7,0.42422269]
[1769655014458,0.001,2948.0,2946.5,0.84844932]
[1769655015754,0.001,2948.0,2946.4,0.002]
[1769655016088,0.001,2948.0,2946.4,9.77251201]
[1769655018055,0.001,2948.0,2946.5,0.84846427]
[1769655018559,0.001,2948.0,2946.6,0.71]
[1769655019431,0.001,2948.0,2946.7,0.71]
[1769655020357,0.001,2948.0,2946.8,0.8483779]
[1769655020560,0.001,2948.0,2946.8,1.61191801]
[1769655021932,0.001,2948.0,2946.8,0.8483779]
[1769655022328,0.001,2948.0,2946.4,0.002]
[1769655022526,9.98688626,2947.8,2946.4,0.002]
[1769655022731,9.98688626,2947.8,2946.5,0.84846324]
[1769655022956,0.99868863,2947.7,2946.4,0.8504737]
[1769655023263,0.99868863,2947.7,2946.4,0.85047495]
[1769655023661,0.99868863,2947.7,2946.4,0.002]
[1769655023869,0.99868863,2947.7,2946.5,0.84844638]
[1769655024032,1.09855749,2947.6,2946.5,0.84844638]
[1769655024438,0.84817642,2947.5,2946.4,0.002]
[1769655025946,0.84816604,2947.6,2946.4,0.002]
[1769655026133,0.001,2947.8,2946.4,0.002]
[1769655026535,0.001,2947.8,2946.4,10.84558392]
[1769655026774,0.001,2947.8,2946.5,1.08455839]
[1769655027062,0.001,2947.8,2946.4,0.002]
[1769655027662,0.001,2947.8,2946.1,0.84857947]
[1769655027663,9.99323318,2947.1,2945.2,1.40168471]
[1769655027862,9.99323318,2947.1,2945.3,0.84879047]
[1769655028163,9.99323318,2947.1,2945.2,3.39531719]
[1769655028334,9.99323318,2947.1,2945.7,0.84867936]
[1769655028534,0.84834911,2946.9,2945.1,3.39539826]
[1769655029538,0.84834911,2946.9,2945.2,10.73380937]
[1769655030663,3.39290992,2947.4,2945.3,0.84880996]
[1769655031233,13.75566942,2947.4,2945.3,0.84880996]
[1769655031459,10.3627595,2947.3,2945.3,0.84880996]
[1769655031671,1.37556694,2947.2,2945.4,1.49778592]
[1769655032582,11.27160613,2947.1,2945.4,0.84877951]
[1769655032744,11.21105104,2947.1,2945.4,0.84877951]
[1769655034044,11.27160613,2947.1,2945.4,0.84877951]
[1769655034571,11.27160613,2947.1,2944.8,0.84895408]
[1769655034879,11.96679342,2947.0,2944.9,1.49785798]
[1769655035043,0.2335703,2946.9,2944.9,1.49785798]
[1769655035245,10.3627595,2946.8,2944.9,1.49785798]
[1769655036161,10.3627595,2946.7,2944.9,1.49785798]
[1769655036338,10.5963298,2946.6,2944.8,0.84895408]
[1769655036543,10.3627595,2946.4,2944.7,0.84897731]
[1769655036744,0.2335703,2946.3,2944.7,0.84897731]
[1769655037568,0.2335703,2946.3,2945.6,0.001]
[1769655038358,10.3627595,2946.3,2944.2,0.002]
[1769655038584,0.90939387,2945.3,2943.1,10.73380937]
[1769655038875,0.2335703,2945.3,2943.1,10.73380937]
[1769655039176,3.39483328,2945.7,2943.2,12.14697881]
[1769655039177,1.05963298,2945.2,2943.2,12.14697881]
[1769655039378,3.39483328,2945.7,2943.2,12.14697881]
[1769655039681,10.65688489,2945.3,2943.2,12.14697881]
[1769655039869,0.2335703,2945.0,2943.0,3.39788504]
[1769655040072,0.2335703,2944.8,2943.0,3.39788504]
[1769655040579,0.9445703,2944.8,2943.0,3.39788504]
[1769655041084,1.55992526,2944.9,2943.0,3.39788504]
[1769655041269,1.53183858,2944.8,2942.9,11.58328269]
[1769655041467,0.84892526,2944.9,2942.9,11.58328269]
[1769655041776,11.21168476,2944.9,2942.9,11.58328269]
[1769655042192,40.3627595,2944.6,2942.9,0.84947332]
[1769655042491,3.39570104,2945.1,2942.8,3.39791365]
[1769655042492,0.84883878,2945.2,2942.8,11.58333463]
[1769655042683,1.05963298,2946.2,2943.6,10.73380937]
[1769655042846,0.8483779,2946.8,2944.1,10.73380937]
[1769655043050,8.15317974,2947.4,2944.6,8.09262465]
[1769655043051,10.3627595,2947.4,2944.6,8.09262465]
[1769655043247,0.84910782,2947.8,2944.7,10.73380937]
[1769655043480,0.84910952,2947.8,2945.3,10.73380937]
[1769655043700,0.84910952,2947.8,2945.5,10.73380937]
[1769655043853,0.84909684,2947.8,2945.5,10.73380937]
[1769655044057,0.84909684,2947.8,2945.6,0.711]
[1769655044260,0.42414572,2947.7,2945.7,1.14448094]
[1769655044468,0.42414572,2947.7,2945.7,10.73380937]
[1769655044675,0.84814764,2947.6,2945.8,0.84866589]
[1769655045403,0.42414572,2947.7,2945.8,11.58247526]
[1769655045562,0.84909733,2947.8,2946.0,10.73380937]
[1769655045563,0.001,2947.8,2946.0,10.73380937]
[1769655045759,0.001,2947.8,2945.9,1.49771388]
[1769655045760,0.001,2948.5,2946.4,10.73380937]
[1769655046064,0.001,2948.5,2946.7,10.73380937]
[1769655046291,0.001,2948.5,2946.9,10.73380937]
[1769655046496,0.001,2949.9,2947.7,10.73380937]
[1769655046676,0.001,2949.9,2947.9,0.84806133]
[1769655047072,0.06055509,2949.4,2946.6,14.12746525]
[1769655047261,0.06055509,2949.0,2947.3,0.84822521]
[1769655047464,1.04233146,2949.3,2947.8,0.84807462]
[1769655047684,0.001,2949.9,2947.8,0.84807462]
[1769655048295,0.001,2949.9,2947.9,0.711]
[1769655048499,0.001,2949.9,2947.9,11.44480937]
[1769655048677,0.001,2949.9,2948.1,10.73380937]
[1769655049302,0.84719915,2950.9,2948.3,10.73380937]
[1769655049503,1.12099586,2950.8,2948.5,10.73380937]
[1769655049700,0.84719915,2950.9,2948.5,10.73380937]
[1769655050200,0.84719915,2950.9,2948.8,10.73380937]
[1769655050500,0.84719915,2950.9,2948.4,1.8826434]
[1769655050501,8.9398238,2950.9,2948.4,1.8826434]
[1769655050662,0.001,2949.7,2948.7,0.84783124]
[1769655050864,11.20995865,2950.9,2948.7,0.84783124]
[1769655051065,1.45986815,2950.8,2948.8,0.49501562]
[1769655051284,0.84719915,2950.9,2948.8,11.22882499]
[1769655051470,0.84719915,2950.9,2948.8,10.73380937]
[1769655052871,3.38879663,2951.2,2948.8,10.73380937]
[1769655052872,3.38879663,2951.2,2948.9,0.84777374]
[1769655053291,10.3627595,2951.1,2948.9,0.84777374]
[1769655053878,10.3627595,2951.1,2948.9,11.58158311]
[1769655054281,0.84705563,2951.4,2948.9,11.58158311]
[1769655054479,10.65688489,2951.2,2948.9,11.58158311]
[1769655054699,10.65688489,2951.2,2948.9,0.84777374]
[1769655054897,11.20990124,2951.1,2948.8,3.39109498]
[1769655055214,11.20990124,2951.1,2948.9,9.99243096]
[1769655055382,1.45984682,2951.0,2949.0,11.33078355]
[1769655055582,0.84714174,2951.1,2949.0,11.33078355]
[1769655056616,1.34162851,2951.3,2949.0,11.33078355]
[1769655056795,14.30834376,2951.4,2949.1,0.84771625]
[1769655057113,10.92000642,2951.4,2949.1,10.84014721]
[1769655057412,3.38833734,2951.5,2949.1,10.84014721]
[1769655058318,10.92000642,2951.4,2949.1,10.84014721]
[1769655059184,0.84708433,2951.3,2949.1,10.84014721]
[1769655059525,1.51554281,2951.2,2949.2,1.36901444]
[1769655059884,10.92000642,2951.0,2949.1,0.84771625]
[1769655060124,10.92000642,2950.9,2949.1,0.84771625]
[1769655060765,10.92000642,2950.9,2948.6,0.711]
[1769655060766,11.15357672,2951.0,2948.3,9.99243096]
[1769655060877,11.21413181,2950.6,2947.7,9.99243096]
[1769655061078,11.21413181,2950.6,2946.9,3.3933488]
[1769655061079,10.92000642,2949.2,2946.9,3.3933488]
[1769655061317,10.92000642,2949.2,2946.6,9.99243096]
[1769655061318,10.98056151,2949.0,2946.7,0.84840669]
[1769655061479,10.92000642,2949.0,2946.7,0.84840669]
[1769655061685,0.84771625,2949.1,2946.7,10.84083765]
[1769655061902,0.42385812,2949.0,2946.9,9.99243096]
[1769655062186,0.42385812,2949.0,2947.0,9.99243096]
[1769655062404,0.84769622,2949.2,2947.0,9.99243096]
[1769655062682,10.98056151,2949.1,2949.0,0.002]
[1769655062898,10.98056151,2949.1,2947.0,0.70900102]
[1769655063095,10.92000642,2949.1,2947.0,0.70900102]
[1769655063385,2.02451525,2949.0,2948.8,0.001]
[1769655063587,2.02451525,2949.0,2947.6,0.002]
[1769655063781,0.84774499,2949.0,2947.6,0.002]
[1769655064283,3.39072625,2949.3,2947.6,0.002]
[1769655064483,3.39054726,2949.4,2947.6,0.002]
[1769655065013,0.16295509,2950.0,2947.6,0.002]
[1769655065014,0.84748635,2950.0,2947.6,9.99443096]
[1769655065212,14.30995184,2950.1,2947.9,0.84806133]
[1769655065930,10.98056151,2949.9,2947.8,0.84807076]
[1769655066210,1.09805615,2949.8,2947.8,0.84807076]
[1769655066393,10.92000642,2949.6,2947.8,0.84807076]
[1769655067213,0.84760128,2949.5,2947.6,0.002]
[1769655067416,11.7676077,2949.5,2947.6,0.002]
[1769655067608,10.92000642,2949.3,2947.6,0.002]
[1769655068414,1.51580096,2949.4,2947.6,0.002]
[1769655068591,0.06055509,2949.4,2947.6,0.002]
[1769655068796,10.92000642,2949.4,2947.6,0.002]
[1769655069408,0.84765876,2949.3,2947.6,0.002]
[1769655070398,11.76766518,2949.3,2947.6,0.002]
[1769655070599,11.82822027,2949.3,2947.6,0.002]
[1769655070843,10.92000642,2949.1,2947.6,0.002]
[1769655071499,10.92000642,2949.1,2947.6,0.001]
[1769655071500,10.98056151,2948.9,2947.6,0.001]
[1769655071693,0.84774499,2949.0,2946.8,10.83981194]
[1769655071893,11.76775141,2949.0,2946.8,10.83981194]
[1769655073951,18.38576385,2948.8,2946.8,0.84738098]
[1769655074160,0.06055509,2948.1,2946.2,9.99243096]
[1769655074298,0.71,2948.0,2946.1,3.39422578]
[1769655074492,10.92000642,2947.9,2946.6,0.84841923]
[1769655074697,0.71,2947.8,2946.0,3.39438158]
[1769655074913,0.71,2947.8,2946.6,0.84842958]
[1769655075133,10.92000642,2947.9,2946.7,3.39362015]
[1769655075134,1.16300064,2947.7,2946.7,3.39362015]
[1769655075310,1.87300064,2947.7,2946.8,0.84837587]
[1769655075626,0.84800379,2948.1,2946.8,0.002]
[1769655075826,1.55800379,2948.1,2946.8,0.002]
[1769655076230,0.75263125,2948.2,2946.8,0.002]
[1769655076434,0.84780249,2948.8,2946.8,9.99443096]
[1769655076638,0.71,2948.7,2946.8,9.99443096]
[1769655076935,0.84780249,2948.8,2946.8,9.99443096]
[1769655077130,0.71,2948.7,2946.8,9.99443096]
[1769655078038,0.84786,2948.6,2946.9,0.84834911]
[1769655078244,0.84786,2948.6,2946.9,2.61130641]
[1769655078624,0.84786,2948.6,2946.9,12.60373737]
[1769655078811,0.84780249,2948.8,2946.9,12.60373737]
[1769655079543,0.84780249,2948.8,2947.0,9.99243096]
[1769655079845,0.84780249,2948.8,2946.9,1.7629573]
[1769655079846,7.46575743,2948.3,2946.9,1.7629573]
[1769655080133,7.46575743,2948.3,2946.5,0.002]
[1769655080134,10.98056151,2948.0,2946.5,0.002]
[1769655080309,11.63000642,2947.9,2946.5,0.002]
[1769655081033,10.92000642,2947.9,2946.5,0.002]
[1769655081338,1.80200064,2947.8,2946.5,0.002]
[1769655081506,0.71,2947.7,2946.5,0.002]
[1769655081904,1.55814015,2947.7,2946.5,0.002]
[1769655082135,0.84814015,2947.7,2946.5,0.002]
[1769655082822,0.84794627,2948.3,2946.5,0.002]
[1769655083032,1.51597378,2948.2,2946.5,1.0014431]
[1769655083348,0.84794627,2948.3,2946.5,0.002]
[1769655083910,3.39178509,2948.4,2946.5,0.002]
[1769655084306,14.31179151,2948.4,2946.5,0.002]
[1769655085246,3.39178509,2948.4,2946.6,10.82483825]
[1769655085561,0.71,2948.7,2946.6,10.82483825]
[1769655085869,0.71,2948.8,2946.8,10.82483825]
[1769655086070,0.84783124,2948.7,2946.9,11.67318736]
[1769655086452,3.39118261,2948.9,2946.9,11.67318736]
[1769655086782,7.46575743,2949.3,2947.1,10.82483825]
[1769655086783,3.39066222,2949.3,2947.1,10.82483825]
[1769655087492,10.22938603,2949.2,2947.1,10.82483825]
[1769655087673,10.16173103,2949.2,2947.0,12.33149663]
[1769655088046,0.84771625,2949.1,2947.2,10.82483825]
[1769655088448,0.84767755,2949.3,2947.2,10.82483825]
[1769655088683,0.84767755,2949.3,2947.4,10.82483825]
[1769655089253,0.001,2948.6,2947.7,10.76156238]
[1769655089459,0.001,2949.4,2947.7,10.76156238]
[1769655090163,0.001,2949.4,2947.9,10.76156238]
[1769655090370,0.001,2949.4,2948.1,10.76156238]
[1769655091396,0.84742118,2950.2,2948.2,10.76156238]
[1769655092177,3.38910662,2950.7,2948.4,10.76156238]
[1769655092573,3.66696804,2951.3,2948.3,0.84794627]
[1769655092574,10.67603082,2951.4,2948.7,10.76156238]
[1769655092873,7.52631252,2951.7,2948.7,10.76156238]
[1769655092874,0.71,2951.7,2948.9,10.76156238]
[1769655093184,0.17614605,2951.8,2949.8,10.76156238]
[1769655093493,3.38725777,2952.3,2950.0,10.76156238]
[1769655094362,10.73658591,2952.0,2950.1,0.8474289]
[1769655094568,11.74968941,2951.9,2950.0,0.84744263]
[1769655095060,11.38603082,2951.8,2949.9,0.71]
[1769655095294,10.67603082,2951.6,2949.6,0.84756152]
[1769655095460,10.67603082,2951.6,2949.6,0.8475571]
[1769655095664,1.07365859,2951.5,2950.0,0.84745592]
[1769655095872,1.07365859,2951.5,2949.8,3.39002941]
[1769655096169,1.78365859,2951.5,2949.8,0.84749342]
[1769655096384,0.84705563,2951.4,2949.2,3.39066837]
[1769655096585,0.2335703,2951.1,2949.2,3.39066837]
[1769655096784,10.67603082,2950.6,2948.9,0.84776615]
[1769655096991,10.67603082,2950.6,2949.1,0.84771314]
[1769655097300,0.71,2950.7,2948.6,10.76156238]
[1769655097515,11.38603082,2950.7,2948.7,1.07615624]
[1769655097718,11.38603082,2950.7,2947.8,0.71]
[1769655097719,10.67603082,2950.3,2948.6,0.84785913]
[1769655098007,0.9435703,2950.7,2947.8,0.71]
[1769655098008,1.07365859,2950.2,2948.9,0.84776906]
[1769655098217,0.2335703,2950.7,2948.8,0.84778395]
[1769655098432,0.84734273,2950.4,2948.4,0.84791751]
[1769655099119,0.84734273,2950.4,2948.4,11.60947989]
[1769655099320,0.49467137,2950.3,2948.5,1.50012217]
[1769655100610,0.84740017,2950.2,2948.5,2.34799693]
[1769655100812,7.46575743,2950.1,2948.3,0.84792933]
[1769655101019,7.46575743,2950.1,2947.9,10.76156238]
[1769655101020,10.67603082,2949.7,2947.9,0.84805827]
[1769655101333,10.67603082,2949.7,2948.1,0.84799695]
[1769655101636,0.71,2950.0,2947.8,3.39229142]
[1769655101844,10.67603082,2949.2,2947.1,3.39316532]
[1769655102012,10.67603082,2949.0,2947.9,0.001]
[1769655102443,11.38603082,2949.0,2947.9,0.001]
[1769655102738,0.84777374,2948.9,2947.9,0.001]
[1769655103840,11.52380456,2948.9,2946.6,3.39369465]
[1769655104805,10.67603082,2948.3,2946.5,0.002]
[1769655105014,10.67603082,2948.1,2946.5,0.002]
[1769655105304,11.38603082,2948.1,2946.5,0.002]
[1769655105606,11.38603082,2948.1,2946.5,0.85045254]
[1769655105850,11.38603082,2948.1,2946.5,0.002]
[1769655106054,11.38603082,2948.1,2946.5,0.85045443]
[1769655106253,10.73658591,2948.0,2946.5,0.002]
[1769655107165,0.84806133,2947.9,2946.5,0.002]
[1769655107331,11.52409215,2947.9,2946.5,0.002]
[1769655107659,1.49163375,2947.8,2946.5,0.002]
[1769655108013,0.06055509,2947.7,2946.5,0.001]
[1769655108319,0.06055509,2947.3,2945.5,0.84410067]
[1769655108525,1.46263125,2947.2,2945.5,0.84410067]
[1769655109040,0.75263125,2947.2,2945.5,0.84410067]
[1769655109245,0.84828096,2947.2,2945.5,11.60566305]
[1769655109448,0.84811887,2947.7,2945.5,11.60566305]
[1769655109813,1.49163375,2947.8,2945.5,11.60566305]
[1769655110015,0.71,2948.5,2945.9,10.76156238]
[1769655110225,10.73658591,2948.4,2945.9,10.76156238]
[1769655110983,0.90838633,2948.7,2945.9,10.76156238]
[1769655111157,0.71,2948.6,2945.9,10.76156238]
[1769655111656,1.55788875,2948.5,2946.1,10.76156238]
[1769655111859,0.22678888,2948.4,2946.2,11.92257945]
[1769655112059,0.22678888,2948.4,2946.2,10.76156238]
[1769655113741,0.84794627,2948.3,2946.3,0.84852187]
[1769655114073,0.84794627,2948.3,2946.3,11.61008425]
[1769655118373,0.84794627,2948.3,2946.4,0.71]
[1769655118586,0.44664257,2948.2,2946.5,12.07742234]
[1769655118944,1.07470825,2948.4,2946.5,12.07742234]
[1769655119260,0.84791937,2948.4,2946.5,12.07742234]
[1769655119659,10.93888625,2948.4,2946.5,1.23200843]
[1769655119854,10.15152197,2948.2,2946.3,0.84852187]
[1769655120075,10.15152197,2948.0,2946.2,3.39408749]
[1769655120248,10.09096688,2948.0,2946.2,3.39408749]
[1769655120695,10.99952576,2948.1,2946.1,3.39408749]
[1769655121034,10.99952576,2948.1,2946.0,0.84859456]
[1769655121035,10.09096688,2947.4,2946.0,0.84859456]
[1769655121286,10.15152197,2947.0,2945.5,0.002]
[1769655121456,10.15152197,2946.6,2945.5,0.002]
[1769655121857,0.06055509,2946.2,2945.3,0.002]
[1769655122059,0.84857947,2946.1,2945.3,0.001]
[1769655123383,0.84857947,2946.1,2944.3,0.85109825]
[1769655123384,0.06055509,2945.7,2944.3,0.002]
[1769655123602,0.06055509,2945.4,2944.2,0.84912266]
[1769655123751,0.06055509,2945.4,2943.0,3.39787565]
[1769655123752,10.15152197,2945.4,2943.0,3.39787565]
[1769655124086,0.84886761,2945.1,2943.1,3.39771289]
[1769655124785,0.75263125,2945.6,2943.6,10.84541391]
[1769655125084,0.06055509,2945.9,2943.6,10.84541391]
[1769655125282,0.06055509,2945.9,2943.7,0.711]
[1769655125458,0.06055509,2945.7,2943.6,10.84541391]
[1769655125658,10.15152197,2945.9,2943.7,1.08454139]
[1769655125864,10.09096688,2945.9,2943.7,11.9299553]
[1769655126059,0.84866589,2945.8,2943.8,0.84924247]
[1769655126266,0.84866589,2945.8,2944.4,0.002]
[1769655126689,0.06055509,2945.6,2944.4,0.001]
[1769655126986,10.15152197,2945.6,2944.1,4.1e-06]
[1769655128965,0.84875233,2945.5,2944.1,4.1e-06]
[1769655129167,1.43342964,2945.7,2944.1,4.1e-06]
[1769655129382,10.93948875,2946.4,2944.2,0.711]
[1769655129581,0.90907696,2946.4,2944.3,0.711]
[1769655130086,0.84852187,2946.4,2944.3,0.711]
[1769655130287,0.84852187,2946.4,2944.3,11.55641391]
[1769655130695,0.84834911,2946.9,2944.4,10.84541391]
[1769655130904,0.8480901,2947.8,2945.1,10.84541391]
[1769655131312,1.4391541,2948.0,2945.4,10.84541391]
[1769655131606,0.001,2948.2,2945.6,10.84541391]
[1769655131776,0.84898921,2948.2,2945.6,10.84541391]
[1769655131976,0.84898921,2948.2,2945.5,0.711]
[1769655131977,0.84898836,2948.2,2945.9,10.84541391]
[1769655132205,0.001,2948.2,2945.9,10.84541391]
[1769655132378,3.45098798,2949.5,2946.4,10.84541391]
[1769655132379,0.84763002,2949.4,2946.4,10.84541391]
[1769655133005,0.711,2950.0,2946.8,10.84541391]
[1769655133190,0.84748635,2949.9,2947.4,10.84541391]
[1769655133391,0.84748635,2949.9,2946.7,8.95588835]
[1769655133392,0.49484318,2949.8,2947.6,10.84541391]
[1769655133590,0.06055509,2949.7,2947.6,10.84541391]
[1769655133807,8.16803675,2949.7,2947.6,11.55641391]
[1769655134113,8.16803675,2949.7,2947.5,1.89528956]
[1769655134114,10.15152197,2949.6,2947.5,1.89528956]
[1769655134418,1.82590036,2949.5,2947.4,10.84541391]
[1769655134702,0.06055509,2949.4,2947.3,0.711]
[1769655134912,3.39040515,2949.6,2947.4,0.84820519]
[1769655135205,8.95505421,2949.7,2947.6,10.84541391]
[1769655135206,3.39018207,2949.7,2947.6,10.84541391]
[1769655135378,0.84745762,2950.0,2947.6,10.84541391]
[1769655136710,0.84728529,2950.6,2947.6,10.84541391]
[1769655136913,3.38802293,2951.6,2947.5,1.2062026]
[1769655136914,0.06055509,2951.3,2948.6,11.69327391]
[1769655137072,18.25900363,2951.1,2948.7,1.50847139]
[1769655137273,18.25900363,2951.1,2948.6,11.69327391]
[1769655137274,0.06055509,2950.7,2948.6,0.84786]
[1769655137490,10.15152197,2950.7,2948.6,0.84786]
[1769655137711,10.09096688,2950.7,2948.6,0.84786]
[1769655138710,0.001,2949.3,2948.5,0.8478866]
[1769655138913,0.001,2949.3,2948.1,3.39194551]
[1769655139217,0.84731401,2950.5,2948.1,14.23735942]
[1769655139381,0.84731401,2950.5,2948.2,10.84541391]
[1769655139577,1.43275369,2950.4,2948.3,1.42373594]
[1769655140073,1.43275369,2950.4,2948.4,10.84541391]
[1769655140272,1.43275369,2950.4,2948.3,1.42373594]
[1769655140273,10.93828089,2950.5,2948.3,1.42373594]
[1769655140476,10.93828089,2950.5,2948.2,0.71]
[1769655141206,10.93828089,2950.5,2948.3,11.69336018]
[1769655141207,0.84731401,2950.5,2948.3,11.69336018]
[1769655141606,10.93828089,2950.5,2948.3,0.84794627]
[1769655143113,0.84731401,2950.5,2948.3,11.69336018]
[1769655143495,3.38925605,2950.6,2948.3,11.69336018]
[1769655143694,0.67785121,2950.5,2948.4,12.42492844]
[1769655144714,0.67785121,2950.5,2948.3,0.84794627]
[1769655144715,10.15152197,2950.2,2948.3,0.84793325]
[1769655145322,10.09096688,2950.2,2948.3,0.84793325]
[1769655145629,0.90798399,2950.1,2948.0,0.84803256]
[1769655146121,10.69996009,2949.9,2948.0,0.84803256]
[1769655146283,10.69996009,2949.5,2947.8,0.71]
[1769655146487,1.06999601,2949.8,2947.9,0.84805778]
[1769655147591,0.84754381,2949.7,2947.9,0.84805778]
[1769655148714,18.14235573,2949.7,2947.9,0.84805778]
[1769655148889,13.16450953,2949.6,2947.9,0.84805778]
[1769655149085,13.16450953,2949.6,2947.8,1.5580823]
[1769655149689,11.75185811,2949.5,2947.8,0.84808326]
[1769655150122,18.1424132,2949.5,2947.5,0.84816045]
[1769655150296,10.90425683,2949.4,2948.2,0.002]
[1769655150490,13.28356394,2949.4,2948.2,0.001]
[1769655150984,10.90425683,2949.2,2948.0,0.002]
[1769655151196,10.90425683,2949.2,2946.7,10.82961323]
[1769655151197,0.06055509,2948.2,2946.2,10.8266204]
[1769655151393,0.71,2948.3,2946.2,10.8266204]
[1769655151703,10.90425683,2948.1,2946.1,0.84857947]
[1769655152029,0.84797503,2948.2,2946.1,0.84857947]
[1769655152030,0.84797503,2948.2,2946.1,11.6781927]
[1769655152405,3.391182,2948.9,2946.1,11.6781927]
[1769655152723,10.90425683,2948.8,2946.1,11.6781927]
[1769655152931,10.90425683,2948.8,2946.3,10.82961323]
[1769655153231,12.33380071,2948.7,2946.4,1.15396132]
[1769655153398,10.90425683,2948.7,2946.4,1.15396132]
[1769655153930,0.84786,2948.6,2946.5,0.84846427]
[1769655154299,0.84786,2948.6,2946.5,11.6780775]
[1769655156322,7.17786,2948.6,2946.5,11.6780775]
[1769655156521,2.14735568,2948.5,2946.6,1.62258959]
[1769655156917,13.05161251,2948.5,2946.6,1.62258959]
[1769655157933,0.84791751,2948.4,2946.7,0.84840669]
[1769655159314,2.99524911,2948.5,2946.7,11.67801992]
[1769655159514,0.84789343,2948.5,2946.7,11.67801992]
[1769655159827,11.75215026,2948.5,2946.7,0.84840669]
[1769655160427,11.81270535,2948.5,2946.7,0.84840669]
[1769655161515,11.75215026,2948.5,2946.7,0.84840669]
[1769655162645,0.001,2948.3,2946.6,3.39362676]
[1769655162838,1.17631503,2948.3,2946.6,4.27259467]
[1769655163360,12.08057186,2948.3,2945.7,14.22432292]
[1769655163545,10.96481192,2947.6,2946.3,0.84851578]
[1769655163717,0.71,2947.5,2946.2,0.84854745]
[1769655163917,0.71,2947.5,2946.4,0.84848743]
[1769655163918,1.16142568,2947.4,2946.4,0.84848743]
[1769655164758,0.71,2947.5,2946.4,0.84848743]
[1769655165354,0.84820519,2947.4,2945.7,10.82961323]
[1769655166016,0.84819409,2947.5,2945.7,10.82961323]
[1769655166245,0.42407506,2947.5,2945.9,10.82961323]
[1769655166453,0.84816327,2947.6,2945.9,10.82961323]
[1769655167433,0.84806133,2947.9,2946.0,11.67822151]
[1769655168553,0.84797503,2948.2,2946.0,11.67822151]
[1769655168719,0.001,2948.3,2946.0,11.67822151]
[1769655168917,0.001,2948.3,2946.2,10.82961323]
[1769655169556,0.001,2948.3,2946.4,10.82961323]
[1769655169737,0.001,2948.3,2946.6,10.82961323]
[1769655169918,2.57721287,2949.1,2946.8,10.82961323]
[1769655170120,0.84773168,2949.1,2946.8,10.82961323]
[1769655170418,0.84754381,2949.7,2946.8,10.82961323]
[1769655171020,0.84754381,2949.7,2947.2,10.82961323]
[1769655171243,8.15122109,2950.7,2947.2,10.82961323]
[1769655171244,0.84740017,2950.2,2947.2,10.82961323]
[1769655171451,0.84745762,2950.0,2947.6,10.82961323]
[1769655171626,0.84745762,2950.0,2947.8,10.82961323]
[1769655171950,0.84745762,2950.0,2947.9,10.82961323]
[1769655172123,0.001,2950.3,2947.9,10.82961323]
[1769655172323,0.84838429,2950.3,2947.9,10.82961323]
[1769655172526,0.84838429,2950.3,2948.1,10.82961323]
[1769655173122,0.84838574,2950.3,2948.1,10.82961323]
[1769655173656,0.84838574,2950.3,2948.2,11.67758826]
[1769655174260,0.001,2950.1,2948.2,11.67758826]
[1769655174553,0.001,2950.1,2948.3,10.82961323]